[Event "Early-Titled-Tuesday-Blitz-July-09-2024"]
[Site "Chess.com"]
[Date "2024.07.09"]
[Round "4"]
[White "Volodar_Murzin"]
[Black "CrimeFightingSpider07"]
[Result "1-0"]
[WhiteElo "2985"]
[BlackElo "2607"]
[TimeControl "180+1"]
[EndTime "8:40:55 PDT"]
[Termination "Volodar_Murzin won by resignation"]

1. d4 {[%clk 0:02:59.4]} 1... Nf6 {[%clk 0:02:59.5]} 2. c4 {[%clk 0:02:59.4]}
2... e6 {[%clk 0:03:00]} 3. Nc3 {[%clk 0:02:59]} 3... d5 {[%clk 0:03:00.7]} 4.
cxd5 {[%clk 0:02:57.2]} 4... exd5 {[%clk 0:03:01.6]} 5. Bg5 {[%clk 0:02:57.7]}
5... Be7 {[%clk 0:03:01.7]} 6. e3 {[%clk 0:02:56.9]} 6... O-O {[%clk 0:03:02.2]}
7. Bd3 {[%clk 0:02:56.9]} 7... b6 {[%clk 0:03:02.5]} 8. Nge2 {[%clk 0:02:56.7]}
8... Bb7 {[%clk 0:03:02.9]} 9. O-O {[%clk 0:02:56.6]} 9... Nbd7 {[%clk
0:03:03.3]} 10. Rc1 {[%clk 0:02:55.8]} 10... h6 {[%clk 0:03:02.8]} 11. Bh4
{[%clk 0:02:55.8]} 11... c5 {[%clk 0:03:02.8]} 12. Bb1 {[%clk 0:02:50.5]} 12...
Re8 {[%clk 0:02:59.3]} 13. Re1 {[%clk 0:02:46.8]} 13... Nf8 {[%clk 0:02:58.6]}
14. Bg3 {[%clk 0:02:38.4]} 14... Rc8 {[%clk 0:02:51.2]} 15. Nf4 {[%clk
0:02:36.8]} 15... Qd7 {[%clk 0:02:38.1]} 16. Nd3 {[%clk 0:02:31.3]} 16... Ne4
{[%clk 0:02:31.6]} 17. Ne5 {[%clk 0:02:19.3]} 17... Qe6 {[%clk 0:02:22.4]} 18.
Bxe4 {[%clk 0:02:07.9]} 18... dxe4 {[%clk 0:02:18.2]} 19. d5 {[%clk 0:02:08.5]}
19... Qf5 {[%clk 0:01:47]} 20. Nc4 {[%clk 0:01:37.4]} 20... Red8 {[%clk
0:01:32.8]} 21. d6 {[%clk 0:01:33.6]} 21... Bf6 {[%clk 0:01:14.1]} 22. Qa4
{[%clk 0:01:31.8]} 22... Ra8 {[%clk 0:01:03.3]} 23. Nb5 {[%clk 0:01:23.1]} 23...
Qd7 {[%clk 0:00:59.6]} 24. Qb3 {[%clk 0:01:17.5]} 24... Bc6 {[%clk 0:00:50.1]}
25. Nc7 {[%clk 0:01:13.5]} 25... Rac8 {[%clk 0:00:48.4]} 26. Qa3 {[%clk
0:01:11.7]} 26... Ra8 {[%clk 0:00:15.3]} 27. Red1 {[%clk 0:01:03]} 27... Ne6
{[%clk 0:00:14.5]} 28. Nxa8 {[%clk 0:01:01.1]} 28... Rxa8 {[%clk 0:00:14.2]} 29.
b4 {[%clk 0:00:55.6]} 29... b5 {[%clk 0:00:08.4]} 30. Ne5 {[%clk 0:00:41.6]}
30... Bxe5 {[%clk 0:00:08.2]} 31. Bxe5 {[%clk 0:00:42.5]} 31... c4 {[%clk
0:00:08.8]} 32. Qc3 {[%clk 0:00:39.9]} 32... f6 {[%clk 0:00:08.7]} 33. Bg3
{[%clk 0:00:40.5]} 33... Qb7 {[%clk 0:00:08.2]} 34. d7 {[%clk 0:00:33.4]} 34...
Bxd7 {[%clk 0:00:08.8]} 35. Rd6 {[%clk 0:00:33.5]} 35... Kf7 {[%clk 0:00:08.7]}
36. Rcd1 {[%clk 0:00:33.5]} 36... Be8 {[%clk 0:00:08.8]} 37. a4 {[%clk
0:00:31.8]} 37... Rc8 {[%clk 0:00:09.4]} 38. a5 {[%clk 0:00:31.4]} 38... a6
{[%clk 0:00:09.4]} 39. Rb6 {[%clk 0:00:31.1]} 39... Qa8 {[%clk 0:00:10.1]} 40.
Rdd6 {[%clk 0:00:31.8]} 40... Rd8 {[%clk 0:00:09.6]} 41. h3 {[%clk 0:00:28.2]}
41... Rxd6 {[%clk 0:00:09.4]} 42. Rxd6 {[%clk 0:00:26.4]} 42... Qc8 {[%clk
0:00:09.5]} 43. Rd1 {[%clk 0:00:23.4]} 43... Bc6 {[%clk 0:00:09.5]} 44. Qd2
{[%clk 0:00:23]} 44... Ke8 {[%clk 0:00:09.4]} 45. Qd6 {[%clk 0:00:23.5]} 45...
Bd7 {[%clk 0:00:07.3]} 46. Qb6 {[%clk 0:00:20]} 46... c3 {[%clk 0:00:06.6]} 47.
Qb8 {[%clk 0:00:13.3]} 47... Qxb8 {[%clk 0:00:05.7]} 48. Bxb8 {[%clk 0:00:14.2]}
48... Nd8 {[%clk 0:00:04.2]} 49. Rc1 {[%clk 0:00:14.1]} 49... Nc6 {[%clk
0:00:04.7]} 50. Bd6 {[%clk 0:00:14.7]} 50... Kf7 {[%clk 0:00:04.3]} 51. Rxc3
{[%clk 0:00:15.3]} 51... Ke6 {[%clk 0:00:05.1]} 52. Bf8 {[%clk 0:00:15.9]} 52...
Ne5 {[%clk 0:00:04.7]} 53. Bxg7 {[%clk 0:00:14.4]} 53... Nc6 {[%clk 0:00:03.5]}
54. Bf8 {[%clk 0:00:14.8]} 54... Kf7 {[%clk 0:00:04.1]} 55. Bc5 {[%clk
0:00:15.4]} 55... Ke6 {[%clk 0:00:04.9]} 56. Rc1 {[%clk 0:00:16.2]} 56... f5
{[%clk 0:00:05.6]} 57. Rd1 {[%clk 0:00:16.7]} 57... Ne5 {[%clk 0:00:04.5]} 58.
Rd6+ {[%clk 0:00:17.4]} 58... Kf7 {[%clk 0:00:04.4]} 59. Rxa6 {[%clk 0:00:18.1]}
59... Bc8 {[%clk 0:00:03.3]} 60. Rxh6 {[%clk 0:00:18.6]} 60... Nc4 {[%clk
0:00:03.7]} 61. a6 {[%clk 0:00:18.4]} 1-0

[Event "Early-Titled-Tuesday-Blitz-July-09-2024"]
[Site "Chess.com"]
[Date "2024.07.09"]
[Round "4"]
[White "Iball95"]
[Black "AcostaPablo"]
[Result "1/2-1/2"]
[WhiteElo "2916"]
[BlackElo "2702"]
[TimeControl "180+1"]
[EndTime "8:40:59 PDT"]
[Termination "Game drawn - insufficient material"]

1. e4 {[%clk 0:03:00.9]} 1... e6 {[%clk 0:02:59.2]} 2. d4 {[%clk 0:03:00.5]}
2... d5 {[%clk 0:02:59.8]} 3. Nc3 {[%clk 0:03:01.1]} 3... Nf6 {[%clk 0:02:59]}
4. Bd3 {[%clk 0:03:00.6]} 4... c5 {[%clk 0:02:55.2]} 5. Nf3 {[%clk 0:03:00.5]}
5... c4 {[%clk 0:02:51.4]} 6. e5 {[%clk 0:03:00.3]} 6... cxd3 {[%clk 0:02:37.5]}
7. exf6 {[%clk 0:03:00.1]} 7... dxc2 {[%clk 0:02:31]} 8. Qxc2 {[%clk 0:03:01]}
8... gxf6 {[%clk 0:02:29.9]} 9. O-O {[%clk 0:03:01.3]} 9... Nc6 {[%clk
0:02:27.6]} 10. Bf4 {[%clk 0:03:01.8]} 10... Bd6 {[%clk 0:02:27.1]} 11. Qd2
{[%clk 0:02:59.9]} 11... a6 {[%clk 0:02:16]} 12. Rfe1 {[%clk 0:02:59.7]} 12...
Ne7 {[%clk 0:02:10.1]} 13. Rac1 {[%clk 0:02:51.9]} 13... Rg8 {[%clk 0:02:03]}
14. Bg3 {[%clk 0:02:49.6]} 14... Bxg3 {[%clk 0:01:55.7]} 15. hxg3 {[%clk
0:02:50.5]} 15... Qd6 {[%clk 0:01:53.8]} 16. Qh6 {[%clk 0:02:49.4]} 16... Ng6
{[%clk 0:01:46.9]} 17. Qxh7 {[%clk 0:02:40.4]} 17... Rh8 {[%clk 0:01:38.5]} 18.
Qg7 {[%clk 0:02:38.8]} 18... Ke7 {[%clk 0:01:38.5]} 19. Nh4 {[%clk 0:02:32.9]}
19... Rxh4 {[%clk 0:01:31.8]} 20. gxh4 {[%clk 0:02:29.3]} 20... Nxh4 {[%clk
0:01:27.6]} 21. Nxd5+ {[%clk 0:01:15.6]} 21... Qxd5 {[%clk 0:01:18.5]} 22. Rc7+
{[%clk 0:01:15.9]} 22... Bd7 {[%clk 0:01:11.8]} 23. Qg3 {[%clk 0:01:02.1]} 23...
Nf5 {[%clk 0:01:08]} 24. Qa3+ {[%clk 0:01:00.9]} 24... Qd6 {[%clk 0:00:58.9]}
25. d5 {[%clk 0:00:27.2]} 25... e5 {[%clk 0:00:42.4]} 26. Rxb7 {[%clk
0:00:24.5]} 26... Rc8 {[%clk 0:00:38.5]} 27. Qa5 {[%clk 0:00:20.5]} 27... Rc5
{[%clk 0:00:36.7]} 28. Qb6 {[%clk 0:00:07.2]} 28... Rxd5 {[%clk 0:00:32.1]} 29.
Rc1 {[%clk 0:00:06.8]} 29... Rb5 {[%clk 0:00:18.5]} 30. Qxd6+ {[%clk 0:00:06.1]}
30... Kxd6 {[%clk 0:00:18.8]} 31. Rcc7 {[%clk 0:00:06]} 31... Rxb7 {[%clk
0:00:17.8]} 32. Rxb7 {[%clk 0:00:06.9]} 32... Nd4 {[%clk 0:00:18.2]} 33. Rb6+
{[%clk 0:00:07.1]} 33... Bc6 {[%clk 0:00:18.3]} 34. Rxa6 {[%clk 0:00:07.6]}
34... f5 {[%clk 0:00:18.8]} 35. b4 {[%clk 0:00:07.3]} 35... f4 {[%clk 0:00:18]}
36. a4 {[%clk 0:00:07.6]} 36... Kd5 {[%clk 0:00:14.9]} 37. b5 {[%clk 0:00:08]}
37... Bd7 {[%clk 0:00:15.5]} 38. Ra7 {[%clk 0:00:06.7]} 38... Be6 {[%clk
0:00:14.6]} 39. a5 {[%clk 0:00:05.4]} 39... Nxb5 {[%clk 0:00:14.3]} 40. Rb7
{[%clk 0:00:05.8]} 40... Kc6 {[%clk 0:00:14.7]} 41. Rb6+ {[%clk 0:00:05.8]}
41... Kc5 {[%clk 0:00:14.7]} 42. Rb7 {[%clk 0:00:06.1]} 42... Bd5 {[%clk
0:00:14.7]} 43. Rb8 {[%clk 0:00:05.1]} 43... Nc7 {[%clk 0:00:13.5]} 44. Rb6
{[%clk 0:00:04.3]} 44... e4 {[%clk 0:00:13.3]} 45. Rf6 {[%clk 0:00:04.3]} 45...
Ne6 {[%clk 0:00:12.2]} 46. Rxf7 {[%clk 0:00:03.5]} 46... e3 {[%clk 0:00:12.8]}
47. fxe3 {[%clk 0:00:03.2]} 47... fxe3 {[%clk 0:00:13.7]} 48. Kf1 {[%clk
0:00:03.7]} 48... Bc4+ {[%clk 0:00:14.2]} 49. Ke1 {[%clk 0:00:03.7]} 49... Nd4
{[%clk 0:00:14.8]} 50. Re7 {[%clk 0:00:03]} 50... Ne6 {[%clk 0:00:11]} 51. g4
{[%clk 0:00:02.2]} 51... Kd6 {[%clk 0:00:10.6]} 52. Re8 {[%clk 0:00:02.1]} 52...
Kd7 {[%clk 0:00:10.5]} 53. Rb8 {[%clk 0:00:02.3]} 53... Nd4 {[%clk 0:00:10.4]}
54. Rb2 {[%clk 0:00:02.9]} 54... e2 {[%clk 0:00:09.9]} 55. Kf2 {[%clk
0:00:02.7]} 55... Bd3 {[%clk 0:00:07.5]} 56. Rd2 {[%clk 0:00:02.9]} 56... e1=Q+
{[%clk 0:00:06]} 57. Kxe1 {[%clk 0:00:02.8]} 57... Nf3+ {[%clk 0:00:06.6]} 58.
Kd1 {[%clk 0:00:03.5]} 58... Nxd2 {[%clk 0:00:07.5]} 59. Kxd2 {[%clk 0:00:04.4]}
59... Ba6 {[%clk 0:00:08]} 60. Ke3 {[%clk 0:00:04.5]} 60... Ke7 {[%clk
0:00:08.9]} 61. Kf4 {[%clk 0:00:04.7]} 61... Kf6 {[%clk 0:00:09.8]} 62. g5+
{[%clk 0:00:05]} 62... Kg6 {[%clk 0:00:10.7]} 63. Ke5 {[%clk 0:00:05.9]} 63...
Kxg5 {[%clk 0:00:10.8]} 64. Kd6 {[%clk 0:00:06.8]} 64... Kf4 {[%clk 0:00:11.5]}
65. Kc6 {[%clk 0:00:07.7]} 65... Be2 {[%clk 0:00:11.5]} 66. Kb6 {[%clk
0:00:08.6]} 66... Bd3 {[%clk 0:00:12.4]} 67. Kc5 {[%clk 0:00:09.1]} 67... Ba6
{[%clk 0:00:12.6]} 68. Kd4 {[%clk 0:00:10]} 68... Be2 {[%clk 0:00:13]} 69. Kc5
{[%clk 0:00:10.9]} 69... Ba6 {[%clk 0:00:13.6]} 70. Kb4 {[%clk 0:00:11.8]} 70...
Be2 {[%clk 0:00:14.2]} 71. Kc3 {[%clk 0:00:12.7]} 71... Ke5 {[%clk 0:00:14.3]}
72. Kd2 {[%clk 0:00:13.6]} 72... Ba6 {[%clk 0:00:14]} 73. Kc3 {[%clk 0:00:14.5]}
73... Kd6 {[%clk 0:00:14.7]} 74. Kb4 {[%clk 0:00:15.4]} 74... Kc6 {[%clk
0:00:15.6]} 75. Kc3 {[%clk 0:00:15.4]} 75... Kc5 {[%clk 0:00:16.5]} 76. Kc2
{[%clk 0:00:15.6]} 76... Kb5 {[%clk 0:00:17.4]} 77. Kd2 {[%clk 0:00:16.5]} 77...
Kxa5 {[%clk 0:00:18.3]} 1/2-1/2

[Event "Early-Titled-Tuesday-Blitz-July-09-2024"]
[Site "Chess.com"]
[Date "2024.07.09"]
[Round "4"]
[White "aanshnerurkar"]
[Black "familijatop71"]
[Result "1-0"]
[WhiteElo "2464"]
[BlackElo "2312"]
[TimeControl "180+1"]
[EndTime "8:40:59 PDT"]
[Termination "aanshnerurkar won on time"]

1. e4 {[%clk 0:03:00.9]} 1... d5 {[%clk 0:03:00]} 2. exd5 {[%clk 0:02:59.4]}
2... Qxd5 {[%clk 0:02:59.2]} 3. Nc3 {[%clk 0:02:59.1]} 3... Qa5 {[%clk
0:02:57.3]} 4. d4 {[%clk 0:02:58.7]} 4... c6 {[%clk 0:02:57.2]} 5. Nf3 {[%clk
0:02:58.7]} 5... Nf6 {[%clk 0:02:57]} 6. Bc4 {[%clk 0:02:54.2]} 6... Bf5 {[%clk
0:02:56.7]} 7. Bd2 {[%clk 0:02:49.4]} 7... e6 {[%clk 0:02:56.6]} 8. Nd5 {[%clk
0:02:40.3]} 8... Qd8 {[%clk 0:02:55.3]} 9. Nxf6+ {[%clk 0:02:40.1]} 9... gxf6
{[%clk 0:02:56.2]} 10. c3 {[%clk 0:02:36.9]} 10... Nd7 {[%clk 0:02:56]} 11. Qe2
{[%clk 0:02:36.3]} 11... Nb6 {[%clk 0:02:38]} 12. Bb3 {[%clk 0:02:34.5]} 12...
Qd6 {[%clk 0:02:36.5]} 13. Nh4 {[%clk 0:02:29.1]} 13... Bg6 {[%clk 0:02:35.8]}
14. O-O-O {[%clk 0:02:18.2]} 14... O-O-O {[%clk 0:02:34.7]} 15. Qf3 {[%clk
0:02:16.5]} 15... Be7 {[%clk 0:02:25.4]} 16. Rhe1 {[%clk 0:02:07.5]} 16... f5
{[%clk 0:02:14.8]} 17. Nxg6 {[%clk 0:02:00.4]} 17... hxg6 {[%clk 0:02:14.8]} 18.
h3 {[%clk 0:02:00.1]} 18... Nd5 {[%clk 0:02:06.1]} 19. Re2 {[%clk 0:01:51.3]}
19... Nf6 {[%clk 0:02:01.3]} 20. Bf4 {[%clk 0:01:47.4]} 20... Qd7 {[%clk
0:01:58]} 21. Rde1 {[%clk 0:01:40]} 21... Ne4 {[%clk 0:01:49.6]} 22. Bc2 {[%clk
0:01:35.9]} 22... Nf6 {[%clk 0:01:42.8]} 23. Kb1 {[%clk 0:01:09.4]} 23... Nd5
{[%clk 0:01:42.7]} 24. Bd2 {[%clk 0:01:08.8]} 24... Kb8 {[%clk 0:01:34.3]} 25.
a3 {[%clk 0:01:06.8]} 25... b5 {[%clk 0:01:28.9]} 26. Bb3 {[%clk 0:00:59.4]}
26... Rhe8 {[%clk 0:01:20.6]} 27. a4 {[%clk 0:00:58.4]} 27... a6 {[%clk
0:01:16.8]} 28. axb5 {[%clk 0:00:56.1]} 28... axb5 {[%clk 0:01:04.5]} 29. Kc2
{[%clk 0:00:55.9]} 29... Kb7 {[%clk 0:00:52.2]} 30. g4 {[%clk 0:00:54.3]} 30...
Bd6 {[%clk 0:00:37.5]} 31. gxf5 {[%clk 0:00:47.8]} 31... gxf5 {[%clk 0:00:30.2]}
32. h4 {[%clk 0:00:47.5]} 32... Nf6 {[%clk 0:00:21.4]} 33. Bg5 {[%clk
0:00:42.7]} 33... Be7 {[%clk 0:00:18]} 34. h5 {[%clk 0:00:35.2]} 34... Ne4
{[%clk 0:00:18.1]} 35. Bc1 {[%clk 0:00:34.3]} 35... Bg5 {[%clk 0:00:15.5]} 36.
Bxg5 {[%clk 0:00:29.5]} 36... Nxg5 {[%clk 0:00:16.4]} 37. Qe3 {[%clk 0:00:29.7]}
37... Ne4 {[%clk 0:00:14.6]} 38. Rg1 {[%clk 0:00:19.1]} 38... Rg8 {[%clk
0:00:14.3]} 39. f3 {[%clk 0:00:11.3]} 39... Rxg1 {[%clk 0:00:13.6]} 40. Qxg1
{[%clk 0:00:10.7]} 40... Nf6 {[%clk 0:00:13.6]} 41. h6 {[%clk 0:00:08.9]} 41...
Nd5 {[%clk 0:00:08.6]} 42. Qg7 {[%clk 0:00:06.1]} 42... Qe8 {[%clk 0:00:06.7]}
43. h7 {[%clk 0:00:01.8]} 43... Kb6 {[%clk 0:00:06.9]} 44. h8=Q {[%clk
0:00:01.2]} 44... Qxh8 {[%clk 0:00:07]} 45. Qxf7 {[%clk 0:00:01.7]} 45... Qe8
{[%clk 0:00:05.7]} 46. Qxe6 {[%clk 0:00:01.1]} 46... Qxe6 {[%clk 0:00:05.6]} 47.
Rxe6 {[%clk 0:00:01.4]} 47... Nf4 {[%clk 0:00:05.5]} 48. Re5 {[%clk 0:00:01.7]}
48... Rf8 {[%clk 0:00:03.8]} 49. Kd2 {[%clk 0:00:02.2]} 49... Kc7 {[%clk
0:00:02.5]} 50. Bc2 {[%clk 0:00:02.4]} 50... Kd6 {[%clk 0:00:01.6]} 51. Rxf5
{[%clk 0:00:02.7]} 51... Rxf5 {[%clk 0:00:01.3]} 52. Bxf5 {[%clk 0:00:02.9]}
52... Nd5 {[%clk 0:00:02.2]} 53. Be4 {[%clk 0:00:03.2]} 53... Nf6 {[%clk
0:00:02.5]} 54. Ke3 {[%clk 0:00:03.7]} 54... Nh5 {[%clk 0:00:03]} 55. f4 {[%clk
0:00:03.7]} 55... Nf6 {[%clk 0:00:03.4]} 56. f5 {[%clk 0:00:04.2]} 56... c5
{[%clk 0:00:03.4]} 57. Kf4 {[%clk 0:00:03.9]} 57... cxd4 {[%clk 0:00:02.1]} 58.
cxd4 {[%clk 0:00:04.3]} 58... Nd7 {[%clk 0:00:02.5]} 59. b4 {[%clk 0:00:03.9]}
59... Nb6 {[%clk 0:00:02.4]} 60. Kg5 {[%clk 0:00:03.8]} 60... Ke7 {[%clk
0:00:02.3]} 61. f6+ {[%clk 0:00:04]} 61... Kf7 {[%clk 0:00:01.5]} 62. d5 {[%clk
0:00:04.3]} 62... Nc4 {[%clk 0:00:01.5]} 63. Bf5 {[%clk 0:00:04.7]} 1-0

[Event "Early-Titled-Tuesday-Blitz-July-09-2024"]
[Site "Chess.com"]
[Date "2024.07.09"]
[Round "4"]
[White "AryanTari"]
[Black "Individoom"]
[Result "0-1"]
[WhiteElo "2985"]
[BlackElo "2750"]
[TimeControl "180+1"]
[EndTime "8:41:02 PDT"]
[Termination "Individoom won by resignation"]

1. e4 {[%clk 0:02:56.6]} 1... c5 {[%clk 0:02:55.8]} 2. Nc3 {[%clk 0:02:54.6]}
2... Nc6 {[%clk 0:02:52.8]} 3. f4 {[%clk 0:02:55]} 3... g6 {[%clk 0:02:42.6]} 4.
Nf3 {[%clk 0:02:55.2]} 4... Bg7 {[%clk 0:02:42.9]} 5. Bb5 {[%clk 0:02:55.8]}
5... Nd4 {[%clk 0:02:26.9]} 6. O-O {[%clk 0:02:55.2]} 6... Nxb5 {[%clk
0:02:09.2]} 7. Nxb5 {[%clk 0:02:56.1]} 7... d6 {[%clk 0:02:09.2]} 8. Qe1 {[%clk
0:02:52.1]} 8... Bd7 {[%clk 0:01:45.6]} 9. Nc3 {[%clk 0:02:45.3]} 9... Bc6
{[%clk 0:01:45.7]} 10. a4 {[%clk 0:02:40.9]} 10... Nf6 {[%clk 0:01:42.1]} 11. d3
{[%clk 0:02:39.8]} 11... O-O {[%clk 0:01:41.3]} 12. Qh4 {[%clk 0:02:34.2]} 12...
Nd7 {[%clk 0:01:27.6]} 13. f5 {[%clk 0:02:31.5]} 13... Ne5 {[%clk 0:01:25.2]}
14. Bh6 {[%clk 0:02:25.7]} 14... Re8 {[%clk 0:00:25.3]} 15. Bxg7 {[%clk
0:02:07.2]} 15... Kxg7 {[%clk 0:00:25.2]} 16. Ng5 {[%clk 0:01:57.8]} 16... h6
{[%clk 0:00:23.1]} 17. fxg6 {[%clk 0:01:58.4]} 17... Kxg6 {[%clk 0:00:07.1]} 18.
Nh3 {[%clk 0:01:22.7]} 18... Kh7 {[%clk 0:00:04.8]} 19. Nd5 {[%clk 0:01:15.3]}
19... Bxd5 {[%clk 0:00:04.3]} 20. exd5 {[%clk 0:01:16.2]} 20... Rg8 {[%clk
0:00:04.6]} 21. Qe4+ {[%clk 0:01:10.3]} 21... Kh8 {[%clk 0:00:04.2]} 22. Qe3
{[%clk 0:01:10.6]} 22... Kh7 {[%clk 0:00:03.2]} 23. Nf4 {[%clk 0:01:11]} 23...
Rg7 {[%clk 0:00:01.9]} 24. Nh5 {[%clk 0:01:09.7]} 24... Rg6 {[%clk 0:00:02]} 25.
Rf5 {[%clk 0:01:05.8]} 25... Qd7 {[%clk 0:00:01.7]} 26. Raf1 {[%clk 0:01:04.7]}
26... Rag8 {[%clk 0:00:02.3]} 27. g3 {[%clk 0:01:05.1]} 27... f6 {[%clk
0:00:02.4]} 28. c3 {[%clk 0:01:03.5]} 28... Rg5 {[%clk 0:00:02.7]} 29. Qe4
{[%clk 0:01:01.8]} 29... Rxf5 {[%clk 0:00:02.9]} 30. Rxf5 {[%clk 0:01:02.7]}
30... Kh8 {[%clk 0:00:03.3]} 31. d4 {[%clk 0:00:52.6]} 31... cxd4 {[%clk
0:00:04.2]} 32. cxd4 {[%clk 0:00:53.1]} 32... Qxa4 {[%clk 0:00:04.1]} 33. Rf1
{[%clk 0:00:44.3]} 33... Ng4 {[%clk 0:00:04]} 34. h3 {[%clk 0:00:38.8]} 34...
Ne5 {[%clk 0:00:01.9]} 35. Qf4 {[%clk 0:00:35.7]} 35... Nf7 {[%clk 0:00:02.2]}
36. Re1 {[%clk 0:00:29.4]} 36... Qc2 {[%clk 0:00:02]} 37. g4 {[%clk 0:00:20.9]}
37... Ng5 {[%clk 0:00:01.9]} 38. Qe3 {[%clk 0:00:16.8]} 38... Qxb2 {[%clk
0:00:01.4]} 39. Nf4 {[%clk 0:00:17.5]} 39... Qc2 {[%clk 0:00:01]} 40. Kf1 {[%clk
0:00:16.4]} 40... Rg7 {[%clk 0:00:01.1]} 41. h4 {[%clk 0:00:15.6]} 41... Nh7
{[%clk 0:00:01]} 42. Qf3 {[%clk 0:00:12.1]} 42... Qc4+ {[%clk 0:00:01]} 43. Re2
{[%clk 0:00:12.4]} 43... Qxd4 {[%clk 0:00:01.3]} 44. Ne6 {[%clk 0:00:13]} 44...
Qd1+ {[%clk 0:00:01.3]} 45. Kf2 {[%clk 0:00:12.3]} 45... Rg8 {[%clk 0:00:01.6]}
46. Nf4 {[%clk 0:00:10.5]} 46... Qd4+ {[%clk 0:00:01]} 47. Kg2 {[%clk
0:00:11.2]} 47... Qd1 {[%clk 0:00:01.2]} 48. Rxe7 {[%clk 0:00:09.9]} 48... Rxg4+
{[%clk 0:00:01.5]} 49. Kf2 {[%clk 0:00:09.3]} 49... Qd4+ {[%clk 0:00:01.8]} 50.
Qe3 {[%clk 0:00:08.6]} 50... Rxf4+ {[%clk 0:00:02.1]} 51. Ke2 {[%clk 0:00:09]}
51... Qxe3+ {[%clk 0:00:02.4]} 52. Kxe3 {[%clk 0:00:09.9]} 52... Rxh4 {[%clk
0:00:02.6]} 53. Rxb7 {[%clk 0:00:10.4]} 53... Rg4 {[%clk 0:00:02.2]} 54. Kf3
{[%clk 0:00:10.7]} 54... h5 {[%clk 0:00:02.3]} 55. Rb8+ {[%clk 0:00:10.6]} 55...
Kg7 {[%clk 0:00:02.1]} 56. Rb7+ {[%clk 0:00:11.5]} 56... Kg6 {[%clk 0:00:02.6]}
57. Rb8 {[%clk 0:00:11.3]} 57... Ng5+ {[%clk 0:00:03.5]} 58. Ke3 {[%clk
0:00:09.1]} 58... Re4+ {[%clk 0:00:03.3]} 59. Kd3 {[%clk 0:00:09.4]} 59... Re5
{[%clk 0:00:03.7]} 60. Rg8+ {[%clk 0:00:09.8]} 60... Kf5 {[%clk 0:00:04]} 61.
Ra8 {[%clk 0:00:10.7]} 61... Kg4 {[%clk 0:00:04.2]} 62. Rxa7 {[%clk 0:00:11.6]}
62... h4 {[%clk 0:00:04.7]} 63. Ra4+ {[%clk 0:00:11.5]} 63... Kg3 {[%clk
0:00:05]} 64. Ra3 {[%clk 0:00:11.6]} 64... h3 {[%clk 0:00:04.5]} 65. Kd4+ {[%clk
0:00:11.9]} 65... Nf3+ {[%clk 0:00:04.9]} 0-1